bitfinex/quotes_SOLUSD_20250102
["timestamp","ask_amount","ask_price","bid_price","bid_amount"]
[1735780463710,20.0,198.31,198.24,15.33310455]
[1735780464344,20.0,198.31,198.23,15.33310455]
[1735780464645,20.0,198.31,198.24,15.33310455]
[1735780466027,20.0,198.31,198.21,15.33310455]
[1735780466321,24.68759065,198.31,198.22,15.33310455]
[1735780466720,24.68759065,198.31,198.21,15.33310455]
[1735780467141,24.68759065,198.31,198.22,15.33310455]
[1735780467652,24.68759065,198.31,198.21,15.33310455]
[1735780468016,24.68759065,198.31,198.21,16.08965727]
[1735780468418,24.68759065,198.31,198.2,15.33310455]
[1735780468419,23.776884,198.31,198.2,15.33310455]
[1735780468617,6.507,198.26,198.16,15.33310455]
[1735780468816,20.0,198.23,198.15,16.08974395]
[1735780469048,20.0,198.23,198.14,15.33310455]
[1735780469849,20.0,198.23,198.13,15.33310455]
[1735780471834,20.0,198.23,198.14,15.33310455]
[1735780472421,20.0,198.23,198.16,15.33310455]
[1735780472616,20.0,198.23,198.15,15.33310455]
[1735780472924,20.0,198.23,198.14,15.33310455]
[1735780473432,20.0,198.23,198.16,15.33310455]
[1735780473958,20.0,198.23,198.17,15.33310455]
[1735780474344,17.21370682,198.26,198.19,15.33310455]
[1735780474566,17.21370682,198.26,198.2,15.33310455]
[1735780474840,17.21370682,198.26,198.19,15.33310455]
[1735780475250,4.68759065,198.26,198.22,15.33310455]
[1735780475450,12.35125781,198.31,198.22,15.33310455]
[1735780475663,20.0,198.28,198.21,15.33310455]
[1735780475870,6.17665781,198.3,198.19,15.33310455]
[1735780475871,20.0,198.27,198.19,15.33310455]
[1735780476247,20.0,198.27,198.18,15.33310455]
[1735780477651,20.0,198.27,198.17,15.33310455]
[1735780477980,20.0,198.23,198.17,15.33310455]
[1735780478177,20.0,198.23,198.16,16.08971514]
[1735780479085,20.0,198.23,198.17,15.33310455]
[1735780479381,20.0,198.23,198.19,15.33310455]
[1735780479884,20.0,198.23,198.18,15.33310455]
[1735780480080,20.0,198.23,198.17,15.33310455]
[1735780484875,20.0,198.23,198.18,15.33310455]
[1735780486172,20.0,198.23,198.19,15.33310455]
[1735780486694,6.17665781,198.26,198.19,15.33310455]
[1735780487992,6.1746,198.31,198.24,15.33310455]
[1735780488289,12.19577398,198.33,198.25,16.08953696]
[1735780488474,20.0,198.3,198.22,15.33310455]
[1735780489490,20.0,198.3,198.23,0.7565162]
[1735780489893,20.0,198.3,198.22,15.33310455]
[1735780491372,20.0,198.28,198.2,16.08961798]
[1735780491596,20.0,198.24,198.17,15.33310455]
[1735780492174,20.0,198.24,198.18,15.33310455]
[1735780494292,12.19577398,198.27,198.19,15.33310455]
[1735780498012,12.19577398,198.27,198.18,15.33310455]
[1735780498222,12.19577398,198.27,198.17,0.75668892]
[1735780498223,20.0,198.24,198.17,16.08979347]
[1735780499241,20.0,198.24,198.15,15.33310455]
[1735780499412,12.1923717,198.24,198.13,15.33310455]
[1735780499596,6.0022,198.21,198.1,1.6002]
[1735780499799,6.0022,198.21,198.11,15.33310455]
[1735780500099,12.17885781,198.21,198.11,15.33310455]
[1735780500505,20.0,198.18,198.11,15.33310455]
[1735780500830,20.0,198.18,198.08,15.33310455]
[1735780500998,20.0,198.18,198.12,15.33310455]
[1735780501335,20.0,198.18,198.11,15.33310455]
[1735780501890,20.0,198.18,198.1,15.33310455]
[1735780502107,20.0,198.18,198.11,15.33310455]
[1735780502312,20.0,198.18,198.12,15.33310455]
[1735780502529,12.17885781,198.21,198.15,15.33310455]
[1735780502729,7.76586529,198.24,198.19,15.33310455]
[1735780503020,7.76586529,198.24,198.23,15.33310455]
[1735780503192,6.0022,198.31,198.23,15.33310455]
[1735780503193,7.76586529,198.28,198.23,15.33310455]
[1735780503390,7.76586529,198.28,198.26,15.33310455]
[1735780503802,7.76586529,198.28,198.27,15.33310455]
[1735780503996,20.0,198.33,198.27,15.33310455]
[1735780504300,25.96442498,198.36,198.27,15.33310455]
[1735780504714,20.0,198.33,198.27,15.33310455]
[1735780505320,20.0,198.33,198.26,15.33310455]
[1735780505912,18.19855969,198.36,198.26,15.33310455]
[1735780506217,20.0,198.33,198.26,15.33310455]
[1735780506797,6.17724352,198.36,198.29,15.33310455]
[1735780506994,6.17724352,198.36,198.3,16.08930881]
[1735780507198,6.17724352,198.36,198.29,15.33310455]
[1735780509317,6.17724352,198.36,198.25,24.53308203]
[1735780509318,6.17724352,198.36,198.31,15.33310455]
[1735780509503,18.19855969,198.41,198.32,15.33310455]
[1735780509702,18.19855969,198.41,198.33,15.33310455]
[1735780510312,18.19855969,198.41,198.31,15.33310455]
[1735780510507,20.0,198.37,198.28,15.33310455]
[1735780510712,26.17724352,198.37,198.28,15.33310455]
[1735780511755,20.0,198.37,198.31,15.33310455]
[1735780512019,6.01911617,198.4,198.32,16.08926147]
[1735780512628,6.01911617,198.4,198.3,15.33310455]
[1735780513118,20.0,198.37,198.29,15.33310455]
[1735780513336,20.0,198.37,198.3,15.33310455]
[1735780513722,20.0,198.37,198.31,15.33310455]
[1735780514019,20.0,198.37,198.3,15.33310455]
[1735780514602,20.0,198.37,198.29,15.33310455]
[1735780514838,20.0,198.37,198.27,15.33310455]
[1735780515007,20.0,198.37,198.28,15.33310455]
[1735780515320,20.0,198.37,198.3,15.33310455]
[1735780515722,20.0,198.37,198.28,15.33310455]
[1735780515938,20.0,198.37,198.29,15.33310455]
[1735780516350,31.85668807,198.37,198.27,15.33310455]
[1735780516504,20.0,198.33,198.26,15.33310455]
[1735780517126,20.0,198.33,198.27,15.33310455]
[1735780517343,20.0,198.33,198.28,15.33310455]
[1735780517931,11.04579273,198.36,198.29,15.33310455]
[1735780518215,6.0022,198.41,198.3,16.08934998]
[1735780518216,11.8397719,198.41,198.3,16.08934998]
[1735780518521,6.01911617,198.4,198.3,16.08934998]
[1735780518709,6.01911617,198.4,198.32,15.33310455]
[1735780519109,5.02667656,198.39,198.3,15.33310455]
[1735780519309,6.01911617,198.38,198.3,15.33310455]
[1735780519539,5.8375719,198.37,198.3,15.33310455]
[1735780519745,11.85668807,198.37,198.3,15.33310455]
[1735780520109,11.85668807,198.37,198.28,0.75615542]
[1735780520110,20.0,198.38,198.32,15.33310455]
[1735780520431,20.0,198.38,198.31,15.33310455]
[1735780521410,20.0,198.38,198.29,15.33310455]
[1735780522227,20.0,198.38,198.28,9.79925089]
[1735780522427,20.0,198.34,198.26,9.79925089]
[1735780522648,31.04579273,198.34,198.23,15.333105]
[1735780522819,20.0,198.3,198.23,15.333105]
[1735780523221,20.0,198.29,198.2,10.55578991]
[1735780523428,20.0,198.29,198.19,9.79925089]
[1735780523640,20.0,198.29,198.18,9.79925089]
[1735780523921,20.0,198.25,198.14,10.55597646]
[1735780524231,20.0,198.25,198.14,0.75672557]
[1735780524626,20.0,198.25,198.14,16.09167058]
[1735780525724,20.0,198.25,198.14,0.75672557]
[1735780525941,20.0,198.23,198.14,0.75672557]
[1735780526147,20.0,198.23,198.14,16.09167058]
[1735780526319,20.0,198.23,198.15,15.33494501]
[1735780526522,5.2141459,198.26,198.18,15.33494501]
[1735780527061,5.02726227,198.28,198.2,15.33494501]
[1735780527226,11.6449459,198.32,198.21,16.09148561]
[1735780527562,20.0,198.29,198.21,16.09148561]
[1735780528168,11.6449459,198.32,198.21,16.09148561]
[1735780528362,20.0,198.29,198.21,16.09148561]
[1735780528556,20.0,198.29,198.21,15.33494501]
[1735780528846,20.0,198.29,198.19,15.33494501]
[1735780529037,20.0,198.29,198.2,16.09153361]
[1735780530725,20.0,198.29,198.2,0.7565886]
[1735780530933,24.82124938,198.29,198.17,15.33494501]
[1735780531330,24.82124938,198.29,198.19,15.33494501]
[1735780532136,24.82124938,198.29,198.2,0.75657256]
[1735780532335,24.82124938,198.29,198.19,15.33494501]
[1735780532649,24.82124938,198.29,198.2,15.33494501]
[1735780533024,24.82124938,198.29,198.22,15.33494501]
[1735780533222,6.4308,198.32,198.25,15.33494501]
[1735780533447,30.0,198.43,198.19,6.388]
[1735780533448,6.5903,198.38,198.28,15.33494501]
[1735780533649,6.5903,198.38,198.26,0.75639933]
[1735780533650,6.5903,198.38,198.29,15.33494501]
[1735780533944,20.0,198.35,198.28,15.33494501]
[1735780534354,20.0,198.35,198.29,15.33494501]
[1735780534652,7.91099408,198.36,198.3,16.09113618]
[1735780535150,12.60941617,198.38,198.3,0.75619117]
[1735780535332,12.60941617,198.38,198.29,15.33494501]
[1735780535828,12.60941617,198.38,198.28,15.33494501]
[1735780536023,20.0,198.35,198.28,15.33494501]
[1735780536243,20.0,198.35,198.29,16.09119346]
[1735780536528,12.60941617,198.38,198.29,16.09119346]
[1735780537540,6.5903,198.38,198.29,16.09119346]
[1735780537735,6.5903,198.38,198.28,15.33494501]
[1735780538552,6.5903,198.38,198.29,16.09119533]
[1735780538931,6.5903,198.38,198.3,15.33494501]
[1735780539136,20.0,198.38,198.3,15.33494501]
[1735780539351,20.0,198.38,198.31,16.0911018]
[1735780539740,20.0,198.38,198.32,15.33494501]
[1735780540364,20.0,198.38,198.31,15.33494501]
[1735780540537,20.0,198.38,198.32,0.7561416]
[1735780540737,20.0,198.38,198.32,16.09108661]
[1735780541236,6.3044,198.48,198.34,15.33494501]
[1735780541442,6.01911617,198.46,198.35,15.33494501]
[1735780542461,6.3044,198.48,198.4,15.33494501]
[1735780542632,6.3044,198.48,198.38,15.33494501]
[1735780542835,6.3044,198.48,198.39,16.09082219]
[1735780543032,6.3044,198.48,198.4,15.33494501]
[1735780544042,6.01911617,198.52,198.4,15.33494501]
[1735780544273,20.0,198.49,198.4,15.33494501]
[1735780545665,20.0,198.49,198.38,15.33494501]
[1735780545855,20.0,198.49,198.36,0.75583806]
[1735780545856,20.0,198.49,198.37,15.33494501]
[1735780546056,20.0,198.49,198.39,16.09089434]
[1735780546746,20.0,198.49,198.4,15.33494501]
[1735780547858,20.0,198.49,198.35,13.35953472]
[1735780547859,20.0,198.49,198.43,15.33494501]
[1735780548649,20.0,198.49,198.4,15.33494501]
[1735780548835,20.0,198.49,198.41,16.09072707]
[1735780549672,20.0,198.49,198.42,15.33494501]
[1735780550063,6.01911617,198.52,198.43,15.33494501]
[1735780550360,6.3044,198.53,198.45,15.33494501]
[1735780550941,20.0,198.55,198.46,15.33494501]
[1735780551247,11.85668807,198.58,198.48,15.33494501]
[1735780552470,20.0,198.55,198.47,16.09038336]
[1735780552839,20.0,198.55,198.48,15.33494501]
[1735780553038,20.0,198.55,198.46,15.33494501]
[1735780553459,20.0,198.55,198.45,15.33494501]
[1735780553672,20.0,198.55,198.42,1.6212]
[1735780553875,31.04579273,198.55,198.42,1.6212]
[1735780554178,20.0,198.49,198.39,15.33494501]
[1735780554477,20.0,198.49,198.38,15.33494501]
[1735780554988,20.0,198.49,198.39,15.33494501]
[1735780555982,20.0,198.49,198.38,0.75591807]
[1735780555983,20.0,198.49,198.38,16.09086308]
[1735780556273,20.0,198.49,198.45,15.33494501]
[1735780556475,41.5371,198.62,198.46,15.33494501]
[1735780556679,20.0,198.58,198.45,15.33494501]
[1735780556975,16.84005308,198.61,198.45,15.33494501]
[1735780557277,11.85668807,198.61,198.45,15.33494501]
[1735780557484,20.0,198.58,198.44,15.33494501]
[1735780558147,20.0,198.54,198.44,15.33494501]
[1735780558469,20.0,198.54,198.45,15.33494501]
[1735780558655,20.0,198.54,198.44,15.33494501]
[1735780558851,20.0,198.54,198.43,0.75564956]
[1735780558852,20.0,198.54,198.43,15.33494501]
[1735780559376,20.0,198.54,198.44,15.33494501]
[1735780560368,20.0,198.54,198.45,15.33494501]
[1735780560544,23.776884,198.57,198.46,16.0905921]
[1735780560952,20.0,198.54,198.46,16.0905921]
[1735780561763,6.01911617,198.58,198.47,15.33494501]
[1735780561953,20.0,198.55,198.48,15.33494501]
[1735780562160,6.01911617,198.58,198.48,15.33494501]
[1735780562489,20.0,198.55,198.49,15.33494501]
[1735780563054,5.8375719,198.61,198.49,15.33494501]
[1735780563274,20.0,198.58,198.49,15.33494501]
[1735780564577,5.8375719,198.61,198.49,15.33494501]
[1735780564776,4.98336501,198.68,198.56,15.33494501]
[1735780564777,6.5371,198.68,198.56,15.33494501]
[1735780565074,20.0,198.65,198.56,15.33494501]
[1735780565473,18.39378807,198.68,198.56,15.33494501]
[1735780565975,20.0,198.64,198.53,17.71142233]
[1735780566181,20.0,198.64,198.53,2.37647732]
[1735780566486,20.0,198.64,198.53,16.95614501]
[1735780566696,20.0,198.64,198.55,15.33494501]
[1735780567291,20.0,198.64,198.56,15.33494501]
[1735780568787,20.0,198.64,198.53,1.6212]
[1735780568962,20.0,198.64,198.53,16.95614501]
[1735780569310,20.0,198.64,198.54,15.33494501]
[1735780570666,20.0,198.64,198.53,0.75531763]
[1735780571005,20.0,198.6,198.5,15.33494501]
[1735780571291,20.0,198.6,198.49,0.75532019]
[1735780571292,9.04354138,198.63,198.54,15.33494501]
[1735780572287,9.04354138,198.63,198.55,15.33494501]
[1735780572659,9.04354138,198.63,198.52,15.33494501]
[1735780572863,9.04354138,198.63,198.51,15.33494501]
[1735780573082,9.04354138,198.63,198.52,15.33494501]
[1735780574567,9.04354138,198.63,198.51,15.33494501]
[1735780575913,20.0,198.6,198.51,15.33494501]
[1735780577395,20.0,198.6,198.5,15.33494501]
[1735780577582,6.2701,198.59,198.48,16.09039213]
[1735780577789,27.79656539,198.58,198.45,15.33494501]
[1735780577983,4.01968139,198.58,198.48,15.33494501]
[1735780579791,4.01968139,198.58,198.47,15.33494501]
[1735780581120,20.0,198.55,198.44,15.33494501]
[1735780581483,20.0,198.55,198.45,15.33494501]
[1735780581899,20.0,198.55,198.44,15.33494501]
[1735780582622,20.0,198.55,198.43,17.64992741]
[1735780582788,20.0,198.55,198.43,16.89424501]
[1735780583123,20.0,198.51,198.41,15.33494501]
[1735780584124,20.0,198.51,198.4,15.33494501]
[1735780585239,9.04694366,198.54,198.42,15.33494501]
[1735780585521,9.04694366,198.54,198.45,15.33494501]
[1735780585729,9.04694366,198.54,198.44,15.33494501]
[1735780586795,20.0,198.51,198.44,15.33494501]
[1735780587424,20.0,198.51,198.41,16.0907849]
[1735780587617,20.0,198.51,198.4,15.33494501]
[1735780587830,6.5123,198.5,198.4,15.33494501]
[1735780588202,6.5123,198.5,198.43,15.33494501]
[1735780588397,6.5123,198.5,198.44,15.33494501]
[1735780588713,6.5123,198.5,198.42,15.33494501]
[1735780589423,6.5123,198.5,198.4,15.33494501]
[1735780589624,6.5123,198.5,198.41,15.33494501]
[1735780589808,6.5123,198.5,198.4,15.33494501]
[1735780589997,6.5123,198.5,198.39,15.33494501]
[1735780590438,6.5123,198.5,198.4,15.33494501]
[1735780591913,20.0,198.47,198.38,15.33494501]
[1735780594212,20.0,198.47,198.33,1.5464]
[1735780594213,20.0,198.47,198.33,16.88134501]
[1735780594839,20.0,198.43,198.32,15.33494501]
[1735780595024,6.1051,198.42,198.31,15.33494501]
[1735780595213,6.1051,198.42,198.33,15.33494501]
[1735780595739,6.1051,198.42,198.32,15.33494501]
[1735780595915,20.0,198.38,198.28,16.88134501]
[1735780598134,20.0,198.39,198.3,15.33494501]
[1735780599334,20.0,198.39,198.27,15.33494501]
[1735780599624,23.776884,198.38,198.25,15.33494501]
[1735780599835,20.0,198.35,198.23,16.89084501]
[1735780600238,20.0,198.35,198.24,15.33494501]
[1735780601023,20.0,198.36,198.24,15.33494501]
[1735780601343,20.0,198.31,198.18,2.31241069]
[1735780601524,20.0,198.31,198.17,15.33494501]
[1735780601860,20.0,198.27,198.16,15.33494501]
[1735780602229,6.1051,198.26,198.15,15.33494501]
[1735780602627,23.776884,198.25,198.15,15.33494501]
[1735780602936,20.0,198.22,198.15,15.33494501]
[1735780603121,20.0,198.22,198.14,15.33494501]
[1735780604125,20.0,198.23,198.17,15.33494501]
[1735780604325,20.0,198.23,198.13,15.33494501]
[1735780604536,20.0,198.23,198.12,15.33494501]
[1735780605344,20.0,198.23,198.13,15.33494501]
[1735780605547,20.0,198.23,198.16,15.33494501]
[1735780605759,6.1051,198.26,198.18,15.33494501]
[1735780605959,6.1051,198.26,198.19,15.33494501]
[1735780606144,6.1051,198.26,198.2,15.33494501]
[1735780606742,6.1051,198.32,198.22,15.33494501]
[1735780607063,6.1051,198.32,198.23,15.33494501]
[1735780607269,6.1051,198.32,198.25,15.33494501]
[1735780607569,6.1051,198.32,198.26,15.33494501]
[1735780608873,6.1051,198.44,198.27,15.33494501]
[1735780609045,43.776884,198.39,198.27,15.33494501]
[1735780609246,20.0,198.4,198.27,15.33494501]
[1735780609445,13.38137097,198.43,198.29,15.33494501]
[1735780609674,13.38137097,198.43,198.31,15.33494501]
[1735780609973,20.0,198.39,198.3,15.33494501]
[1735780610651,23.776884,198.42,198.3,15.33494501]
[1735780610843,20.0,198.39,198.31,15.33494501]
[1735780611040,20.0,198.39,198.29,15.33494501]
[1735780611261,20.0,198.39,198.26,15.33494501]
[1735780611458,6.6398,198.36,198.24,15.33494501]
[1735780611633,20.0,198.32,198.23,15.33494501]
[1735780611937,20.0,198.32,198.21,15.33494501]
[1735780612137,20.0,198.32,198.22,15.33494501]
[1735780612338,20.0,198.33,198.22,15.33494501]
[1735780612563,20.0,198.33,198.21,15.33494501]
[1735780613633,20.0,198.33,198.19,15.33494501]
[1735780614546,20.0,198.33,198.2,15.33494501]
[1735780615266,20.0,198.33,198.21,15.33494501]
[1735780616968,20.0,198.33,198.22,15.33494501]
[1735780617969,20.0,198.33,198.21,15.33494501]
[1735780618363,20.0,198.33,198.18,2.31249465]
[1735780618364,20.0,198.33,198.22,15.33494501]
[1735780620065,20.0,198.33,198.21,15.33494501]
[1735780620470,20.0,198.33,198.22,15.33494501]
[1735780621062,20.0,198.33,198.21,15.33494501]
[1735780621455,20.0,198.33,198.22,15.33494501]
[1735780621856,20.0,198.33,198.24,15.33494501]
[1735780622165,6.6398,198.36,198.26,15.33494501]
[1735780622366,6.6398,198.36,198.28,15.33494501]
[1735780622956,6.6398,198.36,198.3,15.33494501]
[1735780623162,9.33296519,198.41,198.31,15.33494501]
[1735780623473,20.0,198.38,198.3,15.33494501]
[1735780623857,9.33296519,198.41,198.3,15.33494501]
[1735780624061,20.0,198.38,198.3,15.33494501]
[1735780624258,22.73525926,198.38,198.26,15.33494501]
[1735780624566,3.83139878,198.37,198.25,15.33494501]
[1735780625243,3.83139878,198.37,198.27,15.33494501]
[1735780625646,3.83139878,198.37,198.24,16.09129254]
[1735780625859,20.0,198.35,198.23,15.33494501]
[1735780626072,6.134,198.32,198.21,15.33494501]
[1735780626270,20.0,198.29,198.21,15.33494501]
[1735780626775,20.0,198.29,198.22,15.33494501]
[1735780628161,20.0,198.29,198.18,2.31242906]
[1735780628162,20.0,198.29,198.21,15.33494501]
[1735780628368,20.0,198.29,198.2,15.33494501]
[1735780629153,20.0,198.29,198.18,15.33494501]
[1735780629354,20.0,198.29,198.17,15.33494501]
[1735780630886,20.0,198.29,198.16,15.33494501]
[1735780631068,6.134,198.32,198.16,15.33494501]
[1735780631069,20.0,198.27,198.16,15.33494501]
[1735780631582,20.0,198.27,198.15,15.33494501]
[1735780631782,20.0,198.27,198.16,15.33494501]
[1735780632070,20.0,198.27,198.19,15.33494501]
[1735780632281,20.0,198.27,198.2,15.33494501]
[1735780632973,20.0,198.27,198.18,15.33494501]
[1735780633466,20.0,198.27,198.17,15.33494501]
[1735780633657,20.0,198.23,198.14,15.33494501]
[1735780633859,26.5273,198.23,198.14,15.33494501]
[1735780635858,26.5273,198.23,198.11,0.75672585]
[1735780636060,26.5273,198.23,198.11,15.33494501]
[1735780636262,26.5273,198.23,198.12,15.33494501]
[1735780636977,26.5273,198.23,198.11,15.33494501]
[1735780637181,26.5273,198.23,198.1,15.33494501]
[1735780638377,20.0,198.19,198.1,15.33494501]
[1735780638881,20.0,198.19,198.09,15.33494501]
[1735780639080,20.0,198.19,198.08,16.96204501]
[1735780639399,20.0,198.19,198.08,15.33494501]
[1735780639760,20.0,198.19,198.06,0.75703505]
[1735780639761,20.0,198.19,198.07,15.33494501]
[1735780639985,20.0,198.15,198.05,15.33494501]
[1735780640279,20.0,198.15,198.04,1.26629959]
[1735780640879,20.0,198.15,198.03,15.33494501]
[1735780641682,20.0,198.11,198.02,16.6012446]
[1735780641976,6.0123,198.1,198.02,1.26629959]
[1735780642181,6.0123,198.1,198.0,15.33494501]
[1735780642378,6.0123,198.1,197.99,1.26629959]
[1735780642379,20.0,198.07,197.99,1.26629959]
[1735780642760,7.03226397,198.14,198.06,24.56878877]
[1735780643065,6.0123,198.2,198.13,24.56878877]
[1735780643268,6.0123,198.28,198.17,24.56878877]
[1735780643703,20.0,198.24,198.14,24.56878877]
[1735780643879,20.0,198.24,198.13,24.56878877]
[1735780644267,20.0,198.24,198.12,24.56878877]
[1735780644597,20.0,198.24,198.11,24.56878877]
[1735780644788,20.0,198.24,198.1,1.6181]
[1735780644789,20.0,198.19,198.08,24.56878877]
[1735780645308,20.0,198.19,198.09,24.56878877]
[1735780646167,20.0,198.19,198.08,24.56878877]
[1735780646688,20.0,198.19,198.0,75.07378877]
[1735780646689,20.0,198.11,198.0,24.56878877]
[1735780647065,20.0,198.11,197.99,24.56878877]
[1735780647579,20.0,198.11,197.98,24.56878877]
[1735780647781,20.0,198.11,197.99,24.56878877]
[1735780648082,20.0,198.11,198.0,24.56878877]
[1735780648971,20.0,198.11,198.02,24.56878877]
[1735780649183,20.0,198.11,198.03,24.56878877]
[1735780649487,20.0,198.11,198.04,24.56878877]
[1735780650592,6.0123,198.14,198.05,0.75725588]
[1735780650767,6.0123,198.25,198.11,24.56878877]
[1735780650973,6.0123,198.25,198.13,24.56878877]
[1735780651370,6.0123,198.25,198.16,24.56878877]
[1735780651584,6.0123,198.25,198.17,24.56878877]
[1735780651783,20.0,198.22,198.17,24.56878877]
[1735780651988,6.0123,198.25,198.17,24.56878877]
[1735780652766,6.0123,198.25,198.18,24.56878877]
[1735780653183,6.0123,198.25,198.19,24.56878877]
[1735780653689,6.0123,198.34,198.19,24.56878877]
[1735780653889,23.776884,198.33,198.19,24.56878877]
[1735780654187,6.0123,198.34,198.19,24.56878877]
[1735780654416,20.0,198.31,198.19,24.56878877]
[1735780654909,23.776884,198.33,198.19,24.56878877]
[1735780655211,6.0123,198.34,198.2,24.56878877]
[1735780655496,6.0123,198.34,198.24,24.56878877]
[1735780655669,6.0123,198.34,198.26,24.56878877]
[1735780655872,6.0123,198.34,198.28,24.56878877]
[1735780656789,6.0123,198.34,198.27,24.56878877]
[1735780657093,6.0123,198.34,198.18,10.0]
[1735780657094,6.0123,198.34,198.24,24.56878877]
[1735780657477,6.0123,198.34,198.25,24.56878877]
[1735780658168,6.0123,198.34,198.27,24.56878877]
[1735780658374,6.0123,198.34,198.22,23.776884]
[1735780658596,6.0123,198.34,198.28,24.56878877]
[1735780659695,6.1875,198.4,198.3,24.56878877]
[1735780659896,6.1875,198.4,198.31,24.56878877]
[1735780660399,20.0,198.37,198.31,24.56878877]
[1735780661090,20.0,198.37,198.3,24.56878877]
[1735780662215,20.0,198.37,198.29,24.56878877]
[1735780662879,20.0,198.37,198.27,24.56878877]
[1735780663302,20.0,198.37,198.28,24.56878877]
[1735780663496,20.0,198.37,198.27,24.56878877]
[1735780663806,20.0,198.37,198.28,24.56878877]
[1735780666404,20.0,198.37,198.29,24.56878877]
[1735780667016,20.0,198.37,198.3,24.56878877]
[1735780667510,20.0,198.37,198.2,1.615]
[1735780667679,20.0,198.37,198.24,24.56878877]
[1735780667879,20.0,198.37,198.27,24.56878877]
[1735780668079,20.0,198.37,198.29,24.56878877]
[1735780668288,20.0,198.37,198.3,24.56878877]
[1735780669206,20.0,198.37,198.31,24.56878877]
[1735780671208,20.0,198.37,198.25,24.56878877]
[1735780671378,20.0,198.37,198.26,24.56878877]
[1735780671883,20.0,198.37,198.27,24.56878877]
[1735780672087,20.0,198.37,198.29,24.56878877]
[1735780672295,20.0,198.37,198.3,24.56878877]
[1735780673126,20.0,198.37,198.31,24.56878877]
[1735780673301,20.0,198.37,198.33,24.56878877]
[1735780673702,6.1875,198.4,198.32,24.56878877]
[1735780674209,6.1875,198.4,198.28,23.776884]
[1735780674437,6.1875,198.4,198.32,15.3069491]
[1735780674935,20.0,198.37,198.3,15.3069491]
[1735780675580,20.0,198.37,198.29,15.3069491]
[1735780675918,20.0,198.37,198.3,15.3069491]
[1735780677427,20.0,198.37,198.29,15.3069491]
[1735780677616,20.0,198.37,198.25,15.3069491]
[1735780677801,20.0,198.37,198.26,15.3069491]
[1735780678125,20.0,198.37,198.3,15.3069491]
[1735780678926,20.0,198.37,198.31,15.3069491]
[1735780679490,20.0,198.37,198.29,15.3069491]
[1735780679699,20.0,198.37,198.22,13.36852321]
[1735780680003,20.0,198.37,198.28,15.3069491]
[1735780681141,20.0,198.37,198.26,15.3069491]
[1735780681546,20.0,198.33,198.26,15.3069491]
[1735780681844,20.0,198.29,198.21,15.3069491]
[1735780682043,20.0,198.29,198.19,15.3069491]
[1735780682345,20.0,198.29,198.2,15.3069491]
[1735780682643,20.0,198.29,198.21,15.3069491]
[1735780683345,20.0,198.29,198.22,15.3069491]
[1735780683550,20.0,198.29,198.21,15.3069491]
[1735780684250,20.0,198.29,198.19,15.3069491]
[1735780684485,6.1875,198.32,198.21,15.3069491]
[1735780684817,20.0,198.25,198.18,15.3069491]
[1735780685133,20.0,198.25,198.12,0.75673707]
[1735780685134,20.0,198.25,198.17,15.3069491]
[1735780686031,20.0,198.25,198.19,15.3069491]
[1735780687144,20.0,198.25,198.18,15.3069491]
[1735780687913,20.0,198.29,198.2,15.3069491]
[1735780688255,20.0,198.29,198.21,15.3069491]
[1735780688452,20.0,198.29,198.19,15.3069491]
[1735780688761,20.0,198.29,198.2,15.3069491]
[1735780689130,20.0,198.29,198.21,15.3069491]
[1735780690455,6.1875,198.32,198.23,15.3069491]
[1735780690756,6.1875,198.32,198.24,15.3069491]
[1735780690956,20.0,198.29,198.24,15.3069491]
[1735780691340,20.0,198.29,198.23,15.3069491]
[1735780691743,20.0,198.29,198.21,15.3069491]
[1735780691946,20.0,198.29,198.22,15.3069491]
[1735780692141,20.0,198.29,198.24,15.3069491]
[1735780692338,20.0,198.29,198.23,15.3069491]
[1735780692657,20.0,198.29,198.22,15.3069491]
[1735780693728,20.0,198.29,198.23,15.3069491]
[1735780694129,20.0,198.29,198.2,15.3069491]